{"text_format":"1","workbook":"xlsx","n_sheets":4,"sheets":["OsnovniPodatki","Distribucije","XML","BAZA"],"not_rendered":{"charts":0,"images":3,"macros":1,"external_links":0,"defined_names":3,"comments":1,"pivot_tables":0},"unopened":[],"bounds":{"document_bytes":16777216,"sheet_cells":100000,"rows_first":2000,"rows_last":500,"rows_between":2000,"halvings":0,"cell_chars":16384,"cell_head_chars":4096},"cells_cut":0,"cells_raw":0,"read":"whole","date_system":"1900"}

{"sheet":"OsnovniPodatki","index":0,"n_rows":314,"n_cols":31,"rows_kept":314,"cut":false,"hidden":false,"merged":[[3,1,3,4],[2,1,2,4],[17,3,17,4],[12,3,12,4],[13,1,13,2],[14,1,14,2],[12,1,12,2],[10,3,10,4],[13,3,13,4],[4,1,4,4],[5,1,5,4],[17,1,17,2],[11,3,11,4],[9,1,9,2],[10,1,10,2],[15,1,15,2],[46,1,46,4],[31,1,31,3],[41,1,41,4],[42,1,42,4],[9,3,9,4],[30,1,30,4],[14,3,14,4],[15,3,15,4],[28,1,28,4],[16,1,16,2],[16,3,16,4],[22,1,22,3],[23,1,23,3],[24,1,24,3],[25,1,25,3],[21,1,21,3]]}
[]
[]
[null,{"$f":"IFERROR(IF(BAZA!M11<>0,\"Neizpolnjen ali nepravilno izpolnjen obrazec ni mogoče oddati!\",\"\"),\"Neizpolnjen ali nepravilno izpolnjen obrazec ni mogoče oddati!\")","v":"Neizpolnjen ali nepravilno izpolnjen obrazec ni mogoče oddati!"}]
[null,{"$f":"IF(BAZA!N20<>0,\"Neusklajeno število podanih distribucijskih sistemov (Zavihek 'OsnovniPodatki'-'Distribucije')!\",\"\")","v":""}]
[null,"Posredovanje informacij",null,null,null,"v.1.03"]
[null,{"$f":"\"Dejavnost distribucije toplote ali drugih energetskih plinov \nna območju lokalne skupnosti - \"&IFERROR(YEAR(E22),\"\")","v":"Dejavnost distribucije toplote ali drugih energetskih plinov \nna območju lokalne skupnosti - "}]
[]
[null,"OSNOVNI PODATKI O LOKALNI SKUPNOSTI"]
[]
[null,"Naziv lokalne skupnosti:",null,null,null,null,{"$f":"IF(H10=1,\"û\",\"ü\")","v":"û"},{"$f":"IF(D10=\"\",1,0)","v":1}]
[null,"Naselje, ulica, hišna številka:",null,{"$f":"IFERROR(LOOKUP(MATCH(D10,Obcine[ObcinaNaziv],0),Obcine[ID_LS],Obcine[Naslov]),\"\")","v":""},null,null,{"$f":"IF(H11=1,\"û\",\"ü\")","v":"û"},{"$f":"IF(D11=\"\",1,0)","v":1}]
[null,"Številka in kraj pošte:",null,{"$f":"IFERROR(LOOKUP(MATCH(D10,Obcine[ObcinaNaziv],0),Obcine[ID_LS],Obcine[PPTKraj]),\"\")","v":""},null,null,{"$f":"IF(H12=1,\"û\",\"ü\")","v":"û"},1]
[null,"Matična številka:",null,null,null,null,"û",1]
[null,"Telefonska številka:",null,null,null,null,"û",1]
[null,"Elektronski naslov:",null,null,null,null,"û",1]
[null,"Uradna spletna stran (URL naslov):",null,null,null,null,"û",1]
[null,"Uradna spletna stran za dostop do aktov lokalne skupnosti\n(URL naslov):",null,null,null,null,"û",1]
[null,"Ime in priimek zakonitega zastopnika:",null,null,null,null,{"$f":"IF(H18=1,\"û\",\"ü\")","v":"û"},1]
[]
[null,"OSNOVNI PODATKI O IZVAJANJU ENERGETSKIH DEJAVNOSTI"]
[]
[null,"Stanje na datum:",null,null,{"$f":"IF(E36=\"\",\"Datum\",E36)","v":"Datum"},null,{"$f":"IF(H22=1,\"û\",\"ü\")","v":"ü"},{"$f":"IF(E22=\"\",1,0)","v":0}]
[null,"Ali se na območju lokalne skupnosti izvaja dejavnost distribucije toplote ?",null,null,null,null,{"$f":"IF(H23=1,\"û\",\"ü\")","v":"û"},{"$f":"IF(E23=\"\",1,0)","v":1}]
[null,"Število distribucijskih sistemov toplote:",null,null,null,null,{"$f":"IF(H24=1,\"û\",\"ü\")","v":"û"},{"$f":"IF(OR(E24=\"\",AND(E23=\"DA\",E24=0),AND(E23=\"NE\",E24>0)),1,0)","v":1}]
[null,"Ali se na območju lokalne skupnosti izvaja dejavnost distribucije drugih energetskih plinov ?",null,null,null,null,"û",{"$f":"IF(E25=\"\",1,0)","v":1}]
[null,"Število distribucijskih sistemov drugih energetskih plinov:",null,null,null,null,{"$f":"IF(H26=1,\"û\",\"ü\")","v":"û"},{"$f":"IF(OR(E26=\"\",AND(E25=\"DA\",E26=0),AND(E25=\"NE\",E26>0)),1,0)","v":1}]
[]
[null,"Opomba:"]
[]
[]
[null,"Na podlagi Energetskega zakona (Uradni list RS, št. 17/14, 81/15, v nadaljevanju EZ-1) Agencija za energijo (v nadaljevanju agencija) za namene opravljanja svojih nalog s področja distribucije toplote ali drugih energetskih plinov skladno z zakonom, ki ureja varovanje osebnih podatkov in Splošno uredbo o varstvu podatkov (GDPR), vodi evidenco pravnih in fizičnih oseb, ki na območjih lokalne skupnosti opravljajo energetsko dejavnost distribucije toplote in/ali energetsko dejavnost distribucije drugih energetskih plinov (razen distribucije zemeljskega plina). Število aktivnih distribucijskih sistemov za distribucijo toplote in/ali distribucijo drugih energetskih plinov na območju posamezne lokalne skupnosti, lahko pristojni občinski organi posredujejo Agenciji  s pomočjo tega elektronskega obrazca."]
[null,null,null,null,null,null,{"$f":"IF(H32=1,\"û\",\"ü\")","v":"û"},{"$f":"IF(B32=\"\",1,0)","v":1}]
[null,"Ime in priimek, ter tel. št. osebe, odgovorne za posredovanje informacij*"]
[]
[null,null,null,"Kraj:",null,null,{"$f":"IF(H35=1,\"û\",\"ü\")","v":"û"},{"$f":"IF(E35=\"\",1,0)","v":1}]
[null,null,null,"Datum:",null,null,{"$f":"IF(H36=1,\"û\",\"ü\")","v":"û"},{"$f":"IF(E36=\"\",1,0)","v":1}]
[]
[null,null,null,"Žig in podpis odgovorne osebe:"]
[]
[null,"Navodila za izpolnjevanje in oddajo obrazca:"]
[]
[null,"Občinski organ pristojen za urejanje javne infrastrukture izpolni obrazec tako, da vnese zahtevane podatke v vnosna polja posameznih zavihkov obrazca (podatki v sivinsko označena polja se ne vnašajo, saj se podatki generirajo avtomatično), vnosna polja označena z (*) so neobvezna. Vneseni podatki morajo biti konsistentni in pravilni, ter vneseni za vsak posamezen zaključen distribucijski sistem.\nAgenciji je možno oddati le pravilno izpolnjen obrazec, kar pomeni, da obrazec ne vsebuje logičnih ali strukturnih napak vnesenih podatkov in neizpolnjenih obveznih vnosnih polj. Zaznane napake s strani vgrajenih logičnih kontrol obrazca onemogočajo oddajo obrazca (oznaka X poleg vnosnega polja oziroma neizpisanega opozorila o napakah pri vnosu podatkov). Če občinski organ izvaja priglasitev le za en distribucijski sistem na njegovem območju, poročevalec na zavihku obrazca \"Distribucije\", v tabeli 1, izbriše v drugi vrstici zaporedno številko vrstice stolpca ID.\n"]
[null,"Občinski organ pristojen za urejanje javne infrastrukture agenciji  posreduje pravilno izpolnjen obrazec po elektronski pošti na elektronski naslov priglasitev.dt-dep-ob@agen-rs.si s pomočjo aktiviranja gumba »Shrani in pošlji obrazec«, ki omogoča avtomatsko posredovanje informacije (pri izpolnjevanju obrazca v elektronski obliki (program Microsoft Excel 2010 ali višji) morajo biti za izvedbo avtomatiziranega posredovanja obrazca agenciji omogočeni makri, sam obrazec pa mora biti shranjen na lokalni disk poročevalca)."]
[]
[null,"Varovanje osebnih podatkov:"]
[]
[null,"Agencija bo osebne podatke fizične osebe, odgovorne za posredovanje informacij (ime, priimek in telefonska številka) uporabljala izključno za namen komuniciranja v primeru potrebnih dodatnih pojasnil v zvezi s posredovanimi informacijami ter osebnih podatkov ne bo posredovala drugim uporabnikom; z  osebnimi podatki bo ravnala v skladu z zakonom, ki ureja varstvo osebnih podatkov in GDPR. Posameznik, na katerega se nanašajo osebni podatki, ima pravice, ki mu jih zagotavljata zakon, ki ureja varstvo osebnih podatkov in GDPR. Če ima posameznik kakršnokoli vprašanje, povezano z obdelavo svojih osebnih podatkov, jih lahko pošlje na elektronski naslov pri agenciji pooblaščene osebe za varstvo osebnih podatkov: dpo@agen-rs.si."]
[]
[]
[]
[]
[]
[]
[]
[]
[]
[]
[]
[]
[]
[]
[]
[]
[]
[]
[]
[]
[]
[]
[]
[]
[]
[]
[]
[]
[]
[]
[]
[]
[]
[]
[]
[]
[]
[]
[]
[]
[]
[]
[]
[]
[]
[]
[]
[]
[]
[]
[]
[]
[]
[]
[null,null,null,null,null,null,null,null,null,null,null,null,null,null,null,null,null,null,null,null,null,null,null,null,null,null,"ID_LS","ObcinaNaziv","Naslov","PPT_ST","PPTKraj"]
[null,null,null,null,null,null,null,null,null,null,null,null,null,null,null,null,null,null,null,null,null,null,null,null,null,null,1,"Mestna občina Celje","Trg celjskih knezov 9",3000,"3000 Celje"]
[null,null,null,null,null,null,null,null,null,null,null,null,null,null,null,null,null,null,null,null,null,null,null,null,null,null,2,"Mestna občina Koper","Verdijeva ulica 10",6000,"6000 Koper"]
[null,null,null,null,null,null,null,null,null,null,null,null,null,null,null,null,null,null,null,null,null,null,null,null,null,null,3,"Mestna občina Kranj","Slovenski trg 1",4000,"4000 Kranj"]
[null,null,null,null,null,null,null,null,null,null,null,null,null,null,null,null,null,null,null,null,null,null,null,null,null,null,4,"Mestna občina Ljubljana","Mestni trg 1",1000,"1000 Ljubljana"]
[null,null,null,null,null,null,null,null,null,null,null,null,null,null,null,null,null,null,null,null,null,null,null,null,null,null,5,"Mestna občina Maribor","Ul. heroja Staneta 1",2000,"2000 Maribor"]
[null,null,null,null,null,null,null,null,null,null,null,null,null,null,null,null,null,null,null,null,null,null,null,null,null,null,6,"Mestna občina Murska Sobota","Kardoševa 2",9000,"9000 Murska Sobota"]
[null,null,null,null,null,null,null,null,null,null,null,null,null,null,null,null,null,null,null,null,null,null,null,null,null,null,7,"Mestna občina Nova Gorica","Trg Edvarda Kardelja 1",5000,"5000 Nova Gorica"]
[null,null,null,null,null,null,null,null,null,null,null,null,null,null,null,null,null,null,null,null,null,null,null,null,null,null,8,"Mestna občina Novo mesto","Seidlova cesta 1",8000,"8000 Novo mesto"]
[null,null,null,null,null,null,null,null,null,null,null,null,null,null,null,null,null,null,null,null,null,null,null,null,null,null,9,"Mestna občina Ptuj","Mestni trg 1",2250,"2250 Ptuj"]
[null,null,null,null,null,null,null,null,null,null,null,null,null,null,null,null,null,null,null,null,null,null,null,null,null,null,10,"Mestna občina Slovenj Gradec","Šolska ulica 5",2380,"2380 Slovenj Gradec"]
[null,null,null,null,null,null,null,null,null,null,null,null,null,null,null,null,null,null,null,null,null,null,null,null,null,null,11,"Mestna občina Velenje","Titov trg 1",3320,"3320 Velenje"]
[null,null,null,null,null,null,null,null,null,null,null,null,null,null,null,null,null,null,null,null,null,null,null,null,null,null,12,"Občina Ajdovščina","Cesta 5. maja 6 a",5270,"5270 Ajdovščina"]
[null,null,null,null,null,null,null,null,null,null,null,null,null,null,null,null,null,null,null,null,null,null,null,null,null,null,13,"Občina Apače","Apače 42 b",9253,"9253 Apače"]
[null,null,null,null,null,null,null,null,null,null,null,null,null,null,null,null,null,null,null,null,null,null,null,null,null,null,14,"Občina Beltinci","Mladinska ul. 2",9231,"9231 Beltinci"]
[null,null,null,null,null,null,null,null,null,null,null,null,null,null,null,null,null,null,null,null,null,null,null,null,null,null,15,"Občina Benedikt","Čolnikov trg 5",2234,"2234 Benedikt"]
[null,null,null,null,null,null,null,null,null,null,null,null,null,null,null,null,null,null,null,null,null,null,null,null,null,null,16,"Občina Bistrica ob Sotli","Bistrica ob Sotli 9",3256,"3256 Bistrica ob Sotli"]
[null,null,null,null,null,null,null,null,null,null,null,null,null,null,null,null,null,null,null,null,null,null,null,null,null,null,17,"Občina Bled","Cesta svobode 13",4260,"4260 Bled"]
[null,null,null,null,null,null,null,null,null,null,null,null,null,null,null,null,null,null,null,null,null,null,null,null,null,null,18,"Občina Bloke","Nova vas 4a",1385,"1385 Bloke"]
[null,null,null,null,null,null,null,null,null,null,null,null,null,null,null,null,null,null,null,null,null,null,null,null,null,null,19,"Občina Bohinj","Triglavska c. 35",4264,"4264 Bohinjska Bistrica"]
[null,null,null,null,null,null,null,null,null,null,null,null,null,null,null,null,null,null,null,null,null,null,null,null,null,null,20,"Občina Borovnica","Paplerjeva 22",1353,"1353 Borovnica"]
[null,null,null,null,null,null,null,null,null,null,null,null,null,null,null,null,null,null,null,null,null,null,null,null,null,null,21,"Občina Bovec","Trg golobarskih žrtev 8",5230,"5230 Bovec"]
[null,null,null,null,null,null,null,null,null,null,null,null,null,null,null,null,null,null,null,null,null,null,null,null,null,null,22,"Občina Braslovče","Braslovče 22",3314,"3314 Braslovče"]
[null,null,null,null,null,null,null,null,null,null,null,null,null,null,null,null,null,null,null,null,null,null,null,null,null,null,23,"Občina Brda","Trg 25. maja 2",5212,"5212 Dobrovo"]
[null,null,null,null,null,null,null,null,null,null,null,null,null,null,null,null,null,null,null,null,null,null,null,null,null,null,24,"Občina Brezovica","Tržaška c. 390",1351,"1351 Brezovica"]
[null,null,null,null,null,null,null,null,null,null,null,null,null,null,null,null,null,null,null,null,null,null,null,null,null,null,25,"Občina Brežice","C. prvih borcev 18",8250,"8250 Brežice"]
[null,null,null,null,null,null,null,null,null,null,null,null,null,null,null,null,null,null,null,null,null,null,null,null,null,null,26,"Občina Cankova","Cankova 25",9261,"9261 Cankova"]
[null,null,null,null,null,null,null,null,null,null,null,null,null,null,null,null,null,null,null,null,null,null,null,null,null,null,27,"Občina Cerklje na Gorenjskem","Trg Davorina Jenka 13",4207,"4207 Cerklje na Gorenjskem"]
[null,null,null,null,null,null,null,null,null,null,null,null,null,null,null,null,null,null,null,null,null,null,null,null,null,null,28,"Občina Cerknica","C. 4. maja 53",1380,"1380 Cerknica"]
[null,null,null,null,null,null,null,null,null,null,null,null,null,null,null,null,null,null,null,null,null,null,null,null,null,null,29,"Občina Cerkno","Bevkova ulica 9",5282,"5282 Cerkno"]
[null,null,null,null,null,null,null,null,null,null,null,null,null,null,null,null,null,null,null,null,null,null,null,null,null,null,30,"Občina Cerkvenjak","Cerkvenjak 25",2236,"2236 Cerkvenjak"]
[null,null,null,null,null,null,null,null,null,null,null,null,null,null,null,null,null,null,null,null,null,null,null,null,null,null,31,"Občina Cirkulane","Cirkulane 40 a",2282,"2282 Cirkulane"]
[null,null,null,null,null,null,null,null,null,null,null,null,null,null,null,null,null,null,null,null,null,null,null,null,null,null,32,"Občina Črenšovci","Prekmurske čete 20",9232,"9232 Črenšovci"]
[null,null,null,null,null,null,null,null,null,null,null,null,null,null,null,null,null,null,null,null,null,null,null,null,null,null,33,"Občina Črna na Koroškem","Center 101",2393,"2393 Črna na Koroškem"]
[null,null,null,null,null,null,null,null,null,null,null,null,null,null,null,null,null,null,null,null,null,null,null,null,null,null,34,"Občina Črnomelj","Trg svobode 3",8340,"8340 Črnomelj"]
[null,null,null,null,null,null,null,null,null,null,null,null,null,null,null,null,null,null,null,null,null,null,null,null,null,null,35,"Občina Destrnik","Vintarovci 50",2253,"2253 Destrnik"]
[null,null,null,null,null,null,null,null,null,null,null,null,null,null,null,null,null,null,null,null,null,null,null,null,null,null,36,"Občina Divača","Kolodvorska ul 3a",6215,"6215 Divača"]
[null,null,null,null,null,null,null,null,null,null,null,null,null,null,null,null,null,null,null,null,null,null,null,null,null,null,37,"Občina Dobje","Dobje 26",3224,"3224 Dobje pri Planini"]
[null,null,null,null,null,null,null,null,null,null,null,null,null,null,null,null,null,null,null,null,null,null,null,null,null,null,38,"Občina Dobrepolje","Videm 35",1312,"1312 Dobrepolje"]
[null,null,null,null,null,null,null,null,null,null,null,null,null,null,null,null,null,null,null,null,null,null,null,null,null,null,39,"Občina Dobrna","Dobrna 19",3204,"3204 Dobrna"]
[null,null,null,null,null,null,null,null,null,null,null,null,null,null,null,null,null,null,null,null,null,null,null,null,null,null,40,"Občina Dobrova - Polhov Gradec","Vladimirja Dolničarja 2",1356,"1356 Dobrova"]
[null,null,null,null,null,null,null,null,null,null,null,null,null,null,null,null,null,null,null,null,null,null,null,null,null,null,41,"Občina Dobrovnik","Dobrovnik 297",9223,"9223 Dobrovnik"]
[null,null,null,null,null,null,null,null,null,null,null,null,null,null,null,null,null,null,null,null,null,null,null,null,null,null,42,"Občina Kobilje","Kobilje 35",9223,"9223 Dobrovnik"]
[null,null,null,null,null,null,null,null,null,null,null,null,null,null,null,null,null,null,null,null,null,null,null,null,null,null,43,"Občina Dol pri Ljubljani","Dol pri Ljubljani 1",1262,"1262 Dol pri Ljubljani"]
[null,null,null,null,null,null,null,null,null,null,null,null,null,null,null,null,null,null,null,null,null,null,null,null,null,null,44,"Občina Dolenjske Toplice","Zdraviliški trg 8",8350,"8350 Dolenjske Toplice"]
[null,null,null,null,null,null,null,null,null,null,null,null,null,null,null,null,null,null,null,null,null,null,null,null,null,null,45,"Občina Domžale","Ljubljanska 69",1230,"1230 Domžale"]
[null,null,null,null,null,null,null,null,null,null,null,null,null,null,null,null,null,null,null,null,null,null,null,null,null,null,46,"Občina Dornava","Dornava 125",2252,"2252 Dornava"]
[null,null,null,null,null,null,null,null,null,null,null,null,null,null,null,null,null,null,null,null,null,null,null,null,null,null,47,"Občina Dravograd","Trg 4.julija 7",2370,"2370 Dravograd"]
[null,null,null,null,null,null,null,null,null,null,null,null,null,null,null,null,null,null,null,null,null,null,null,null,null,null,48,"Občina Duplek","Cesta 4. julija 106",2241,"2241 Sp. Duplek"]
[null,null,null,null,null,null,null,null,null,null,null,null,null,null,null,null,null,null,null,null,null,null,null,null,null,null,49,"Občina Gorenja vas - Poljane","Poljanska cesta 87",4224,"4224 Gorenja vas"]
[null,null,null,null,null,null,null,null,null,null,null,null,null,null,null,null,null,null,null,null,null,null,null,null,null,null,50,"Občina Škofja Loka","Mestni trg 15",4220,"4220 Škofja Loka"]
[null,null,null,null,null,null,null,null,null,null,null,null,null,null,null,null,null,null,null,null,null,null,null,null,null,null,51,"Občina Gorišnica","Gorišnica 83a",2272,"2272 Gorišnica"]
[null,null,null,null,null,null,null,null,null,null,null,null,null,null,null,null,null,null,null,null,null,null,null,null,null,null,52,"Občina Gorje","Zgornje Gorje 43",4247,"4247 Zgornje Gorje"]
[null,null,null,null,null,null,null,null,null,null,null,null,null,null,null,null,null,null,null,null,null,null,null,null,null,null,53,"Občina Gornja Radgona","Partizanska cesta 13",9250,"9250 Gornja Radgona"]
[null,null,null,null,null,null,null,null,null,null,null,null,null,null,null,null,null,null,null,null,null,null,null,null,null,null,54,"Občina Gornji Grad","Attemsov trg 3",3342,"3342 Gornji Grad"]
[null,null,null,null,null,null,null,null,null,null,null,null,null,null,null,null,null,null,null,null,null,null,null,null,null,null,55,"Občina Gornji Petrovci","Gornji Petrovci 31/d",9203,"9203 Gornji Petrovci"]
[null,null,null,null,null,null,null,null,null,null,null,null,null,null,null,null,null,null,null,null,null,null,null,null,null,null,56,"Občina Grad","Grad 172",9264,"9264 Grad"]
[null,null,null,null,null,null,null,null,null,null,null,null,null,null,null,null,null,null,null,null,null,null,null,null,null,null,57,"Občina Grosuplje","Taborska cesta 2",1290,"1290 Grosuplje"]
[null,null,null,null,null,null,null,null,null,null,null,null,null,null,null,null,null,null,null,null,null,null,null,null,null,null,58,"Občina Hajdina","Zgornja Hajdina 45",2288,"2288 Hajdina"]
[null,null,null,null,null,null,null,null,null,null,null,null,null,null,null,null,null,null,null,null,null,null,null,null,null,null,59,"Občina Hoče - Slivnica","Pohorska cesta 15",2311,"2311 Hoče"]
[null,null,null,null,null,null,null,null,null,null,null,null,null,null,null,null,null,null,null,null,null,null,null,null,null,null,60,"Občina Hodoš - Hodos község","Hodoš 52",9205,"9205 Hodoš"]
[null,null,null,null,null,null,null,null,null,null,null,null,null,null,null,null,null,null,null,null,null,null,null,null,null,null,61,"Občina Horjul","Slovenska c. 7",1354,"1354 Horjul"]
[null,null,null,null,null,null,null,null,null,null,null,null,null,null,null,null,null,null,null,null,null,null,null,null,null,null,62,"Občina Hrastnik","Pot Vitka Pavliča 5",1430,"1430 Hrastnik"]
[null,null,null,null,null,null,null,null,null,null,null,null,null,null,null,null,null,null,null,null,null,null,null,null,null,null,63,"Občina Hrpelje - Kozina","Hrpelje, Reška cesta 14",6240,"6240 Kozina"]
[null,null,null,null,null,null,null,null,null,null,null,null,null,null,null,null,null,null,null,null,null,null,null,null,null,null,64,"Občina Idrija","Mestni trg 1",5280,"5280 Idrija"]
[null,null,null,null,null,null,null,null,null,null,null,null,null,null,null,null,null,null,null,null,null,null,null,null,null,null,65,"Občina Ig","Govekarjeva c. 6",1292,"1292 Ig"]
[null,null,null,null,null,null,null,null,null,null,null,null,null,null,null,null,null,null,null,null,null,null,null,null,null,null,66,"Občina Ilirska Bistrica","Bazoviška cesta 14",6250,"6250 Ilirska Bistrica"]
[null,null,null,null,null,null,null,null,null,null,null,null,null,null,null,null,null,null,null,null,null,null,null,null,null,null,67,"Občina Ivančna Gorica","Sokolska 8",1295,"1295 Ivančna Gorica"]
[null,null,null,null,null,null,null,null,null,null,null,null,null,null,null,null,null,null,null,null,null,null,null,null,null,null,68,"Občina Izola","Sončno nabrežje 8",6310,"6310 Izola"]
[null,null,null,null,null,null,null,null,null,null,null,null,null,null,null,null,null,null,null,null,null,null,null,null,null,null,69,"Občina Jesenice","C. železarjev 6",4270,"4270 Jesenice"]
[null,null,null,null,null,null,null,null,null,null,null,null,null,null,null,null,null,null,null,null,null,null,null,null,null,null,70,"Občina Jezersko","Zgornje Jezersko 65",4206,"4206 Zgornje Jezersko"]
[null,null,null,null,null,null,null,null,null,null,null,null,null,null,null,null,null,null,null,null,null,null,null,null,null,null,71,"Občina Juršinci","Juršinci 3/b",2256,"2256 Juršinci"]
[null,null,null,null,null,null,null,null,null,null,null,null,null,null,null,null,null,null,null,null,null,null,null,null,null,null,72,"Občina Kamnik","Glavni trg 24",1240,"1240 Kamnik"]
[null,null,null,null,null,null,null,null,null,null,null,null,null,null,null,null,null,null,null,null,null,null,null,null,null,null,73,"Občina Kanal ob Soči","Trg svobode 23",5213,"5213 Kanal"]
[null,null,null,null,null,null,null,null,null,null,null,null,null,null,null,null,null,null,null,null,null,null,null,null,null,null,74,"Občina Renče - Vogrsko","Bukovica 43",5293,"5293 Volčja Draga"]
[null,null,null,null,null,null,null,null,null,null,null,null,null,null,null,null,null,null,null,null,null,null,null,null,null,null,75,"Občina Kidričevo","Ul. Borisa Kraigherja 25",2325,"2325 Kidričevo"]
[null,null,null,null,null,null,null,null,null,null,null,null,null,null,null,null,null,null,null,null,null,null,null,null,null,null,76,"Občina Kobarid","Trg svobode 2",5222,"5222 Kobarid"]
[null,null,null,null,null,null,null,null,null,null,null,null,null,null,null,null,null,null,null,null,null,null,null,null,null,null,77,"Občina Kočevje","Ljubljanska cesta 26",1330,"1330 Kočevje"]
[null,null,null,null,null,null,null,null,null,null,null,null,null,null,null,null,null,null,null,null,null,null,null,null,null,null,78,"Občina Komen","Komen 86",6223,"6223 Komen"]
[null,null,null,null,null,null,null,null,null,null,null,null,null,null,null,null,null,null,null,null,null,null,null,null,null,null,79,"Občina Komenda","Zajčeva 23",1218,"1218 Komenda"]
[null,null,null,null,null,null,null,null,null,null,null,null,null,null,null,null,null,null,null,null,null,null,null,null,null,null,80,"Občina Kostanjevica na Krki","Ljubljanska c. 7",8311,"8311 Kostanjevica na Krki"]
[null,null,null,null,null,null,null,null,null,null,null,null,null,null,null,null,null,null,null,null,null,null,null,null,null,null,81,"Občina Kostel","Fara 30",1336,"1336 Kostel"]
[null,null,null,null,null,null,null,null,null,null,null,null,null,null,null,null,null,null,null,null,null,null,null,null,null,null,82,"Občina Kozje","Kozje 37",3260,"3260 Kozje"]
[null,null,null,null,null,null,null,null,null,null,null,null,null,null,null,null,null,null,null,null,null,null,null,null,null,null,83,"Občina Kranjska Gora","Kolodvorska 1b",4280,"4280 Kranjska Gora"]
[null,null,null,null,null,null,null,null,null,null,null,null,null,null,null,null,null,null,null,null,null,null,null,null,null,null,84,"Občina Križevci","Križevci pri Ljutomeru 11",9242,"9242 Križevci pri Ljutomeru"]
[null,null,null,null,null,null,null,null,null,null,null,null,null,null,null,null,null,null,null,null,null,null,null,null,null,null,85,"Občina Krško","C. krških žrtev 14",8270,"8270 Krško"]
[null,null,null,null,null,null,null,null,null,null,null,null,null,null,null,null,null,null,null,null,null,null,null,null,null,null,86,"Občina Kungota","Plintovec 1",2201,"2201 Zgornja Kungota"]
[null,null,null,null,null,null,null,null,null,null,null,null,null,null,null,null,null,null,null,null,null,null,null,null,null,null,87,"Občina Kuzma","Kuzma 24",9263,"9263 Kuzma"]
[null,null,null,null,null,null,null,null,null,null,null,null,null,null,null,null,null,null,null,null,null,null,null,null,null,null,88,"Občina Laško","Mestna ulica 2",3270,"3270 Laško"]
[null,null,null,null,null,null,null,null,null,null,null,null,null,null,null,null,null,null,null,null,null,null,null,null,null,null,89,"Občina Lenart","Trg osvoboditve 7",2230,"2230 Lenart v Slov. Goricah"]
[null,null,null,null,null,null,null,null,null,null,null,null,null,null,null,null,null,null,null,null,null,null,null,null,null,null,90,"Občina Lendava","Glavna ulica 20",9220,"9220 Lendava"]
[null,null,null,null,null,null,null,null,null,null,null,null,null,null,null,null,null,null,null,null,null,null,null,null,null,null,91,"Občina Litija","Jerebova ulica 14",1270,"1270 Litija"]
[null,null,null,null,null,null,null,null,null,null,null,null,null,null,null,null,null,null,null,null,null,null,null,null,null,null,92,"Občina Ljubno","Cesta v Rastke 12",3333,"3333 Ljubno ob Savinji"]
[null,null,null,null,null,null,null,null,null,null,null,null,null,null,null,null,null,null,null,null,null,null,null,null,null,null,93,"Občina Ljutomer","Vrazova ulica 1",9240,"9240 Ljutomer"]
[null,null,null,null,null,null,null,null,null,null,null,null,null,null,null,null,null,null,null,null,null,null,null,null,null,null,94,"Občina Razkrižje","Šafarsko 42",9240,"9240 Ljutomer"]
[null,null,null,null,null,null,null,null,null,null,null,null,null,null,null,null,null,null,null,null,null,null,null,null,null,null,95,"Občina Logatec","Tržaška cesta 15",1370,"1370 Logatec"]
[null,null,null,null,null,null,null,null,null,null,null,null,null,null,null,null,null,null,null,null,null,null,null,null,null,null,96,"Občina Loška Dolina","C. notranjskega odreda 2",1386,"1386 Stari trg pri Ložu"]
[null,null,null,null,null,null,null,null,null,null,null,null,null,null,null,null,null,null,null,null,null,null,null,null,null,null,97,"Občina Loški Potok","Hrib 17",1318,"1318 Loški Potok"]
[null,null,null,null,null,null,null,null,null,null,null,null,null,null,null,null,null,null,null,null,null,null,null,null,null,null,98,"Občina Lovrenc na Pohorju","Spodnji trg 8",2344,"2344 Lovrenc na Pohorju"]
[null,null,null,null,null,null,null,null,null,null,null,null,null,null,null,null,null,null,null,null,null,null,null,null,null,null,99,"Občina Luče","Luče 106",3334,"3334 Luče"]
[null,null,null,null,null,null,null,null,null,null,null,null,null,null,null,null,null,null,null,null,null,null,null,null,null,null,100,"Občina Lukovica","Stari trg 1",1225,"1225 Lukovica"]
[null,null,null,null,null,null,null,null,null,null,null,null,null,null,null,null,null,null,null,null,null,null,null,null,null,null,101,"Občina Majšperk","Majšperk 32/a",2322,"2322 Majšperk"]
[null,null,null,null,null,null,null,null,null,null,null,null,null,null,null,null,null,null,null,null,null,null,null,null,null,null,102,"Občina Makole","Makole 12",2321,"2321 Makole"]
[null,null,null,null,null,null,null,null,null,null,null,null,null,null,null,null,null,null,null,null,null,null,null,null,null,null,103,"Občina Markovci","Markovci 43",2281,"2281 Markovci"]
[null,null,null,null,null,null,null,null,null,null,null,null,null,null,null,null,null,null,null,null,null,null,null,null,null,null,104,"Občina Medvode","Cesta komandanta Staneta 12",1215,"1215 Medvode"]
[null,null,null,null,null,null,null,null,null,null,null,null,null,null,null,null,null,null,null,null,null,null,null,null,null,null,105,"Občina Mengeš","Slovenska cesta 30",1234,"1234 Mengeš"]
[null,null,null,null,null,null,null,null,null,null,null,null,null,null,null,null,null,null,null,null,null,null,null,null,null,null,106,"Občina Metlika","Mestni trg 24",8330,"8330 Metlika"]
[null,null,null,null,null,null,null,null,null,null,null,null,null,null,null,null,null,null,null,null,null,null,null,null,null,null,107,"Občina Mežica","Trg svobode 1",2392,"2392 Mežica"]
[null,null,null,null,null,null,null,null,null,null,null,null,null,null,null,null,null,null,null,null,null,null,null,null,null,null,108,"Občina Miklavž na Dravskem polju","Nad izviri 6",2204,"2204 Miklavž na Dravskem polju"]
[null,null,null,null,null,null,null,null,null,null,null,null,null,null,null,null,null,null,null,null,null,null,null,null,null,null,109,"Občina Miren - Kostanjevica","Miren 129",5291,"5291 Miren"]
[null,null,null,null,null,null,null,null,null,null,null,null,null,null,null,null,null,null,null,null,null,null,null,null,null,null,110,"Občina Mirna Peč","Trg 2",8216,"8216 Mirna Peč"]
[null,null,null,null,null,null,null,null,null,null,null,null,null,null,null,null,null,null,null,null,null,null,null,null,null,null,111,"Občina Mislinja","Šolska cesta 34",2382,"2382 Mislinja"]
[null,null,null,null,null,null,null,null,null,null,null,null,null,null,null,null,null,null,null,null,null,null,null,null,null,null,112,"Občina Mirna","Glavna cesta 28",8233,"8233 Mirna"]
[null,null,null,null,null,null,null,null,null,null,null,null,null,null,null,null,null,null,null,null,null,null,null,null,null,null,113,"Občina Mokronog - Trebelno","Pod gradom 2",8230,"8230 Mokronog"]
[null,null,null,null,null,null,null,null,null,null,null,null,null,null,null,null,null,null,null,null,null,null,null,null,null,null,114,"Občina Moravče","Trg svobode 4",1251,"1251 Moravče"]
[null,null,null,null,null,null,null,null,null,null,null,null,null,null,null,null,null,null,null,null,null,null,null,null,null,null,115,"Občina Moravske Toplice","Kranjčeva ul. 3",9226,"9226 Moravske Toplice"]
[null,null,null,null,null,null,null,null,null,null,null,null,null,null,null,null,null,null,null,null,null,null,null,null,null,null,116,"Občina Mozirje","Savinjska cesta 7",3330,"3330 Mozirje"]
[null,null,null,null,null,null,null,null,null,null,null,null,null,null,null,null,null,null,null,null,null,null,null,null,null,null,117,"Občina Muta","Glavni trg 17",2366,"2366 Muta"]
[null,null,null,null,null,null,null,null,null,null,null,null,null,null,null,null,null,null,null,null,null,null,null,null,null,null,118,"Občina Naklo","Glavna cesta 24",4202,"4202 Naklo"]
[null,null,null,null,null,null,null,null,null,null,null,null,null,null,null,null,null,null,null,null,null,null,null,null,null,null,119,"Občina Nazarje","Savinjska cesta 4",3331,"3331 Nazarje"]
[null,null,null,null,null,null,null,null,null,null,null,null,null,null,null,null,null,null,null,null,null,null,null,null,null,null,120,"Občina Odranci","Panonska ul. 33",9233,"9233 Odranci"]
[null,null,null,null,null,null,null,null,null,null,null,null,null,null,null,null,null,null,null,null,null,null,null,null,null,null,121,"Občina Oplotnica","Grajska ul. 1",2317,"2317 Oplotnica"]
[null,null,null,null,null,null,null,null,null,null,null,null,null,null,null,null,null,null,null,null,null,null,null,null,null,null,122,"Občina Ormož","Ptujska cesta 6",2270,"2270 Ormož"]
[null,null,null,null,null,null,null,null,null,null,null,null,null,null,null,null,null,null,null,null,null,null,null,null,null,null,123,"Občina Osilnica","Osilnica 11",1337,"1337 Osilnica"]
[null,null,null,null,null,null,null,null,null,null,null,null,null,null,null,null,null,null,null,null,null,null,null,null,null,null,124,"Občina Pesnica","Pesnica pri Mariboru 39/a",2211,"2211 Pesnica pri Mariboru"]
[null,null,null,null,null,null,null,null,null,null,null,null,null,null,null,null,null,null,null,null,null,null,null,null,null,null,125,"Občina Piran","Tartinijev trg 2",6330,"6330 Piran"]
[null,null,null,null,null,null,null,null,null,null,null,null,null,null,null,null,null,null,null,null,null,null,null,null,null,null,126,"Občina Pivka","Kolodvorska 5",6257,"6257 Pivka"]
[null,null,null,null,null,null,null,null,null,null,null,null,null,null,null,null,null,null,null,null,null,null,null,null,null,null,127,"Občina Podčetrtek","Trška 5",3254,"3254 Podčetrtek"]
[null,null,null,null,null,null,null,null,null,null,null,null,null,null,null,null,null,null,null,null,null,null,null,null,null,null,128,"Občina Podlehnik","Podlehnik 21",2286,"2286 Podlehnik"]
[null,null,null,null,null,null,null,null,null,null,null,null,null,null,null,null,null,null,null,null,null,null,null,null,null,null,129,"Občina Podvelka","Podvelka 20",2363,"2363 Podvelka"]
[null,null,null,null,null,null,null,null,null,null,null,null,null,null,null,null,null,null,null,null,null,null,null,null,null,null,130,"Občina Poljčane","Bistriška cesta 65",2319,"2319 Poljčane"]
[null,null,null,null,null,null,null,null,null,null,null,null,null,null,null,null,null,null,null,null,null,null,null,null,null,null,131,"Občina Polzela","Polzela 8",3313,"3313 Polzela"]
[null,null,null,null,null,null,null,null,null,null,null,null,null,null,null,null,null,null,null,null,null,null,null,null,null,null,132,"Občina Postojna","Ljubljanska cesta 4",6230,"6230 Postojna"]
[null,null,null,null,null,null,null,null,null,null,null,null,null,null,null,null,null,null,null,null,null,null,null,null,null,null,133,"Občina Prebold","Hmeljarska 3",3312,"3312 Prebold"]
[null,null,null,null,null,null,null,null,null,null,null,null,null,null,null,null,null,null,null,null,null,null,null,null,null,null,134,"Občina Preddvor","Dvorski trg 10",4205,"4205 Preddvor"]
[null,null,null,null,null,null,null,null,null,null,null,null,null,null,null,null,null,null,null,null,null,null,null,null,null,null,135,"Občina Prevalje","Trg 2a",2391,"2391 Prevalje"]
[null,null,null,null,null,null,null,null,null,null,null,null,null,null,null,null,null,null,null,null,null,null,null,null,null,null,136,"Občina Puconci","Puconci 80",9201,"9201 Puconci"]
[null,null,null,null,null,null,null,null,null,null,null,null,null,null,null,null,null,null,null,null,null,null,null,null,null,null,137,"Občina Rače - Fram","Grajski trg 14",2327,"2327 Rače"]
[null,null,null,null,null,null,null,null,null,null,null,null,null,null,null,null,null,null,null,null,null,null,null,null,null,null,138,"Občina Radeče","Ul. Milana Majcna 1",1433,"1433 Radeče"]
[null,null,null,null,null,null,null,null,null,null,null,null,null,null,null,null,null,null,null,null,null,null,null,null,null,null,139,"Občina Radenci","Radgonska c. 9",9252,"9252 Radenci"]
[null,null,null,null,null,null,null,null,null,null,null,null,null,null,null,null,null,null,null,null,null,null,null,null,null,null,140,"Občina Radlje ob Dravi","Mariborska c. 7",2360,"2360 Radlje ob Dravi"]
[null,null,null,null,null,null,null,null,null,null,null,null,null,null,null,null,null,null,null,null,null,null,null,null,null,null,141,"Občina Radovljica","Gorenjska c. 19",4240,"4240 Radovljica"]
[null,null,null,null,null,null,null,null,null,null,null,null,null,null,null,null,null,null,null,null,null,null,null,null,null,null,142,"Občina Ravne na Koroškem","Gačnikova pot 5",2390,"2390 Ravne na Koroškem"]
[null,null,null,null,null,null,null,null,null,null,null,null,null,null,null,null,null,null,null,null,null,null,null,null,null,null,143,"Občina Rečica Ob Savinji","Rečica ob Savinji 55",3332,"3332 Rečica ob Savinji"]
[null,null,null,null,null,null,null,null,null,null,null,null,null,null,null,null,null,null,null,null,null,null,null,null,null,null,144,"Občina Ribnica","Gorenjska c. 3",1310,"1310 Ribnica"]
[null,null,null,null,null,null,null,null,null,null,null,null,null,null,null,null,null,null,null,null,null,null,null,null,null,null,145,"Občina Ribnica na Pohorju","Ribnica na Pohorju 1",2364,"2364 Ribnica na Pohorju"]
[null,null,null,null,null,null,null,null,null,null,null,null,null,null,null,null,null,null,null,null,null,null,null,null,null,null,146,"Občina Rogaška Slatina","Izletniška ul. 2",3250,"3250 Rogaška Slatina"]
[null,null,null,null,null,null,null,null,null,null,null,null,null,null,null,null,null,null,null,null,null,null,null,null,null,null,147,"Občina Rogašovci","Rogašovci 14b",9262,"9262 Rogašovci"]
[null,null,null,null,null,null,null,null,null,null,null,null,null,null,null,null,null,null,null,null,null,null,null,null,null,null,148,"Občina Rogatec","Ceste 11",3252,"3252 Rogatec"]
[null,null,null,null,null,null,null,null,null,null,null,null,null,null,null,null,null,null,null,null,null,null,null,null,null,null,149,"Občina Ruše","Trg vstaje 11",2342,"2342 Ruše"]
[null,null,null,null,null,null,null,null,null,null,null,null,null,null,null,null,null,null,null,null,null,null,null,null,null,null,150,"Občina Selnica ob Dravi","Slovenski trg 4",2352,"2352 Selnica ob Dravi"]
[null,null,null,null,null,null,null,null,null,null,null,null,null,null,null,null,null,null,null,null,null,null,null,null,null,null,151,"Občina Semič","Štefanov trg 9",8333,"8333 Semič"]
[null,null,null,null,null,null,null,null,null,null,null,null,null,null,null,null,null,null,null,null,null,null,null,null,null,null,152,"Občina Sevnica","Glavni trg 19a",8290,"8290 Sevnica"]
[null,null,null,null,null,null,null,null,null,null,null,null,null,null,null,null,null,null,null,null,null,null,null,null,null,null,153,"Občina Sežana","Partizanska c. 4",6210,"6210 Sežana"]
[null,null,null,null,null,null,null,null,null,null,null,null,null,null,null,null,null,null,null,null,null,null,null,null,null,null,154,"Občina Slovenska Bistrica","Kolodvorska ul. 10",2310,"2310 Slovenska Bistrica"]
[null,null,null,null,null,null,null,null,null,null,null,null,null,null,null,null,null,null,null,null,null,null,null,null,null,null,155,"Občina Slovenske Konjice","Stari trg 29",3210,"3210 Slovenske Konjice"]
[null,null,null,null,null,null,null,null,null,null,null,null,null,null,null,null,null,null,null,null,null,null,null,null,null,null,156,"Občina Sodražica","Trg 25. maja 3",1317,"1317 Sodražica"]
[null,null,null,null,null,null,null,null,null,null,null,null,null,null,null,null,null,null,null,null,null,null,null,null,null,null,157,"Občina Solčava","Solčava 16",3335,"3335 Solčava"]
[null,null,null,null,null,null,null,null,null,null,null,null,null,null,null,null,null,null,null,null,null,null,null,null,null,null,158,"Občina Središče ob Dravi","Trg talcev 4",2277,"2277 Središče ob Dravi"]
[null,null,null,null,null,null,null,null,null,null,null,null,null,null,null,null,null,null,null,null,null,null,null,null,null,null,159,"Občina Starše","Starše 93",2205,"2205 Starše"]
[null,null,null,null,null,null,null,null,null,null,null,null,null,null,null,null,null,null,null,null,null,null,null,null,null,null,160,"Občina Straža","Ul. Talcev 9",8351,"8351 Straža"]
[null,null,null,null,null,null,null,null,null,null,null,null,null,null,null,null,null,null,null,null,null,null,null,null,null,null,161,"Občina Sveta Ana","Sveta Ana 17",2233,"2233 Sveta Ana v Slovenskih goricah"]
[null,null,null,null,null,null,null,null,null,null,null,null,null,null,null,null,null,null,null,null,null,null,null,null,null,null,162,"Občina Sveta Trojica v Slovenskih goricah","Mariborska c. 1",2235,"2235 Sv. Trojica v Slovenskih goricah"]
[null,null,null,null,null,null,null,null,null,null,null,null,null,null,null,null,null,null,null,null,null,null,null,null,null,null,163,"Občina Sveti Andraž v Slovenskih goricah","Vitomarci 71",2255,"2255 Vitomarci"]
[null,null,null,null,null,null,null,null,null,null,null,null,null,null,null,null,null,null,null,null,null,null,null,null,null,null,164,"Občina Sveti Jurij ob Ščavnici","Ulica Bratka Krefta 14",9244,"9244 Svetij Jurij ob Ščavnici"]
[null,null,null,null,null,null,null,null,null,null,null,null,null,null,null,null,null,null,null,null,null,null,null,null,null,null,165,"Občina Sveti Jurij v Slovenskih Goricah","Jurovski dol 70 b",2223,"2223 Jurovski dol"]
[null,null,null,null,null,null,null,null,null,null,null,null,null,null,null,null,null,null,null,null,null,null,null,null,null,null,166,"Občina Sveti Tomaž","Sveti Tomaž 73",2258,"2258 Sveti Tomaž"]
[null,null,null,null,null,null,null,null,null,null,null,null,null,null,null,null,null,null,null,null,null,null,null,null,null,null,167,"Občina Šalovci","Šalovci 162",9204,"9204 Šalovci"]
[null,null,null,null,null,null,null,null,null,null,null,null,null,null,null,null,null,null,null,null,null,null,null,null,null,null,168,"Občina Šempeter - Vrtojba","Cesta goriške fronte 11",5290,"5290 Šempeter pri Gorici"]
[null,null,null,null,null,null,null,null,null,null,null,null,null,null,null,null,null,null,null,null,null,null,null,null,null,null,169,"Občina Šenčur","Kranjska 11",4208,"4208 Šenčur"]
[null,null,null,null,null,null,null,null,null,null,null,null,null,null,null,null,null,null,null,null,null,null,null,null,null,null,170,"Občina Šentilj","Maistrova ul. 2",2212,"2212 Šentilj"]
[null,null,null,null,null,null,null,null,null,null,null,null,null,null,null,null,null,null,null,null,null,null,null,null,null,null,171,"Občina Šentjernej","Trubarjeva c. 5",8310,"8310 Šentjernej"]
[null,null,null,null,null,null,null,null,null,null,null,null,null,null,null,null,null,null,null,null,null,null,null,null,null,null,172,"Občina Šentjur pri Celju","Mestni trg 10",3230,"3230 Šentjur"]
[null,null,null,null,null,null,null,null,null,null,null,null,null,null,null,null,null,null,null,null,null,null,null,null,null,null,173,"Občina Šentrupert","Šentrupert 33",8232,"8232 Šentrupert"]
[null,null,null,null,null,null,null,null,null,null,null,null,null,null,null,null,null,null,null,null,null,null,null,null,null,null,174,"Občina Škocjan","Škocjan 67",8275,"8275 Škocjan"]
[null,null,null,null,null,null,null,null,null,null,null,null,null,null,null,null,null,null,null,null,null,null,null,null,null,null,175,"Občina Škofljica","Šmarska c. 3",1291,"1291 Škofljica"]
[null,null,null,null,null,null,null,null,null,null,null,null,null,null,null,null,null,null,null,null,null,null,null,null,null,null,176,"Občina Šmarje pri Jelšah","Aškerčev trg 12",3240,"3240 Šmarje pri Jelšah"]
[null,null,null,null,null,null,null,null,null,null,null,null,null,null,null,null,null,null,null,null,null,null,null,null,null,null,177,"Občina Šmarješke Toplice","Šmarjeta 66",8220,"8220 Šmarješke Toplice"]
[null,null,null,null,null,null,null,null,null,null,null,null,null,null,null,null,null,null,null,null,null,null,null,null,null,null,178,"Občina Šmartno ob Paki","Šmartno ob Paki 72",3327,"3327 Šmartno ob Paki"]
[null,null,null,null,null,null,null,null,null,null,null,null,null,null,null,null,null,null,null,null,null,null,null,null,null,null,179,"Občina Šmartno pri Litiji","Tomazinova ul. 2",1275,"1275 Šmartno pri Litiji"]
[null,null,null,null,null,null,null,null,null,null,null,null,null,null,null,null,null,null,null,null,null,null,null,null,null,null,180,"Občina Šoštanj","Trg svobode 12",3325,"3325 Šoštanj"]
[null,null,null,null,null,null,null,null,null,null,null,null,null,null,null,null,null,null,null,null,null,null,null,null,null,null,181,"Občina Štore","Cesta XIV. divizije 15",3220,"3220 Štore"]
[null,null,null,null,null,null,null,null,null,null,null,null,null,null,null,null,null,null,null,null,null,null,null,null,null,null,182,"Občina Tabor","Tabor 21",3304,"3304 Tabor"]
[null,null,null,null,null,null,null,null,null,null,null,null,null,null,null,null,null,null,null,null,null,null,null,null,null,null,183,"Občina Tišina","Tišina 4",9251,"9251 Tišina"]
[null,null,null,null,null,null,null,null,null,null,null,null,null,null,null,null,null,null,null,null,null,null,null,null,null,null,184,"Občina Tolmin","Padlih borcev 2",5220,"5220 Tolmin"]
[null,null,null,null,null,null,null,null,null,null,null,null,null,null,null,null,null,null,null,null,null,null,null,null,null,null,185,"Občina Trbovlje","Mestni trg 4",1420,"1420 Trbovlje"]
[null,null,null,null,null,null,null,null,null,null,null,null,null,null,null,null,null,null,null,null,null,null,null,null,null,null,186,"Občina Trebnje","Goliev trg 5",8210,"8210 Trebnje"]
[null,null,null,null,null,null,null,null,null,null,null,null,null,null,null,null,null,null,null,null,null,null,null,null,null,null,187,"Občina Trnovska vas","Trnovska vas 42",2254,"2254 Trnovska vas"]
[null,null,null,null,null,null,null,null,null,null,null,null,null,null,null,null,null,null,null,null,null,null,null,null,null,null,188,"Občina Trzin","Mengeška cesta 22",1236,"1236 Trzin"]
[null,null,null,null,null,null,null,null,null,null,null,null,null,null,null,null,null,null,null,null,null,null,null,null,null,null,189,"Občina Tržič","Trg svobode 18",4290,"4290 Tržič"]
[null,null,null,null,null,null,null,null,null,null,null,null,null,null,null,null,null,null,null,null,null,null,null,null,null,null,190,"Občina Turnišče","Štefana Kovača 73",9224,"9224 Turnišče"]
[null,null,null,null,null,null,null,null,null,null,null,null,null,null,null,null,null,null,null,null,null,null,null,null,null,null,191,"Občina Velika Polana","Velika Polana 111",9225,"9225 Velika Polana"]
[null,null,null,null,null,null,null,null,null,null,null,null,null,null,null,null,null,null,null,null,null,null,null,null,null,null,192,"Občina Velike Lašče","Levstikov trg 1",1315,"1315 Velike Lašče"]
[null,null,null,null,null,null,null,null,null,null,null,null,null,null,null,null,null,null,null,null,null,null,null,null,null,null,193,"Občina Veržej","Ul. bratstva in enotnosti 8",9241,"9241 Veržej"]
[null,null,null,null,null,null,null,null,null,null,null,null,null,null,null,null,null,null,null,null,null,null,null,null,null,null,194,"Občina Videm","Videm pri Ptuju 54",2284,"2284 Videm pri Ptuju"]
[null,null,null,null,null,null,null,null,null,null,null,null,null,null,null,null,null,null,null,null,null,null,null,null,null,null,195,"Občina Vipava","Glavni trg 15",5271,"5271 Vipava"]
[null,null,null,null,null,null,null,null,null,null,null,null,null,null,null,null,null,null,null,null,null,null,null,null,null,null,196,"Občina Vitanje","Grajski trg 1",3205,"3205 Vitanje"]
[null,null,null,null,null,null,null,null,null,null,null,null,null,null,null,null,null,null,null,null,null,null,null,null,null,null,197,"Občina Vodice","Kopitarjev trg 1",1217,"1217 Vodice"]
[null,null,null,null,null,null,null,null,null,null,null,null,null,null,null,null,null,null,null,null,null,null,null,null,null,null,198,"Občina Vojnik","Kerševa ul. 8",3212,"3212 Vojnik"]
[null,null,null,null,null,null,null,null,null,null,null,null,null,null,null,null,null,null,null,null,null,null,null,null,null,null,199,"Občina Vransko","Vransko 59",3305,"3305 Vransko"]
[null,null,null,null,null,null,null,null,null,null,null,null,null,null,null,null,null,null,null,null,null,null,null,null,null,null,200,"Občina Vrhnika","Tržaška c. 1",1360,"1360 Vrhnika"]
[null,null,null,null,null,null,null,null,null,null,null,null,null,null,null,null,null,null,null,null,null,null,null,null,null,null,201,"Občina Vuzenica","Mladinska ul. 1",2367,"2367 Vuzenica"]
[null,null,null,null,null,null,null,null,null,null,null,null,null,null,null,null,null,null,null,null,null,null,null,null,null,null,202,"Občina Zagorje ob Savi","Cesta 9. avgusta 5",1410,"1410 Zagorje ob Savi"]
[null,null,null,null,null,null,null,null,null,null,null,null,null,null,null,null,null,null,null,null,null,null,null,null,null,null,203,"Občina Zavrč","Zavrč 11",2283,"2283 Zavrč"]
[null,null,null,null,null,null,null,null,null,null,null,null,null,null,null,null,null,null,null,null,null,null,null,null,null,null,204,"Občina Zreče","Cesta na Roglo 13b",3214,"3214 Zreče"]
[null,null,null,null,null,null,null,null,null,null,null,null,null,null,null,null,null,null,null,null,null,null,null,null,null,null,205,"Občina Žalec","Ul. Savinjske čete 5",3310,"3310 Žalec"]
[null,null,null,null,null,null,null,null,null,null,null,null,null,null,null,null,null,null,null,null,null,null,null,null,null,null,206,"Občina Železniki","Češnjica 48",4228,"4228 Železniki"]
[null,null,null,null,null,null,null,null,null,null,null,null,null,null,null,null,null,null,null,null,null,null,null,null,null,null,207,"Občina Žetale","Žetale 4",2287,"2287 Žetale"]
[null,null,null,null,null,null,null,null,null,null,null,null,null,null,null,null,null,null,null,null,null,null,null,null,null,null,208,"Občina Žiri","Trg svobode 2",4226,"4226 Žiri"]
[null,null,null,null,null,null,null,null,null,null,null,null,null,null,null,null,null,null,null,null,null,null,null,null,null,null,209,"Občina Žirovnica","Breznica 3",4274,"4274 Žirovnica"]
[null,null,null,null,null,null,null,null,null,null,null,null,null,null,null,null,null,null,null,null,null,null,null,null,null,null,210,"Občina Žužemberk","Grajski trg 33",8360,"8360 Žužemberk"]
[null,null,null,null,null,null,null,null,null,null,null,null,null,null,null,null,null,null,null,null,null,null,null,null,null,null,211,"Občina Log-Dragomer","Na Grivi 5",1358,"1358 Log pri Brezovici"]
[null,null,null,null,null,null,null,null,null,null,null,null,null,null,null,null,null,null,null,null,null,null,null,null,null,null,212,"Občina Ankaran","Jadranska cesta 66",6280,"6280 Ankaran"]

{"sheet":"Distribucije","index":1,"n_rows":14,"n_cols":25,"rows_kept":14,"cut":false,"hidden":false,"merged":[[2,2,2,8]]}
[null,null,null,null,{"$f":"IF(BAZA!M11>0,\"Neizpolnjen ali nepravilno izpolnjen obrazec ni mogoče oddati!\",\"\")","v":"Neizpolnjen ali nepravilno izpolnjen obrazec ni mogoče oddati!"},null,null,null,null,null,null,null,null,null,null,null,null,null,null,null,null,null,"Daljinsko ogrevanje",null,"Javni gospodarski zavod"]
[null,null,null,null,{"$f":"OsnovniPodatki!B5","v":"Posredovanje informacij"},null,null,null,null,null,null,null,null,null,null,null,null,null,null,null,null,null,"Daljinsko hlajenje",null,"Javno-zasebno partnerstvo"]
[null,null,{"$f":"OsnovniPodatki!B6","v":"Dejavnost distribucije toplote ali drugih energetskih plinov \nna območju lokalne skupnosti - "},null,null,null,null,null,null,null,null,null,null,null,null,null,null,null,null,null,null,null,"Distribucija drugih enegetskih plinov",null,"Koncesionirana gospodarska javna služba"]
[null,null,null,null,null,null,null,null,"Matična številka:",{"$f":"IF(OsnovniPodatki!D13=0,\"\",OsnovniPodatki!D13)","v":""},null,null,null,null,null,null,null,null,null,null,null,null,null,null,"Režijski obrat"]
["Naziv lokalne skupnosti:",null,null,null,{"$f":"IF(BAZA!N20>0,\"Preostalo število nedefiniranih distribucijskih sistemov: \"&BAZA!N20,\"\")","v":""},null,null,null,"Datum priglasitve:",{"$f":"OsnovniPodatki!E36","v":"00:00:00"},null,null,null,null,null,null,null,null,null,null,null,null,null,null,"GJS - drugo"]
[null,null,{"$f":"IF(BAZA!M22=0,\"\",BAZA!M22)","v":""},null,null,null,null,null,null,null,null,null,null,null,null,null,null,null,null,null,null,null,null,null,"Ni GJS"]
[]
[null,null,"Tabela: 1"]
[null,null,"Osnovni podatki o izvajalcih energetske dejavnosti distribucije toplote/hladu/drugih energetskih plinov na območju lokalne skupnosti"]
[null,"ID","Firma - izvajalec energetske dejavnosti","Matična številka izvajalca dejavnosti","Območje izvajanja distribucije (občina, krajevna skupnost, naselje, soseska, ulica...)","Oblika izvajanja energetske dejavnosti (Tržna/GJS)","Podeljena izključna pravica izvajanja GJS?","Vrsta \ndistribucijskega sistema\n(namen distribucije)","Število oskrbovanih \ngospodinjskih odjemalcev","Število oskrbovanih\n poslovnih in/ali industrijskih odjemalcev"]
[null,"Enota",null,null,null,null,null,null,"/","/"]
[null,"ID","IzvajalecNaziv","IzvajalecMaticna","Distribucija_Lokacija_Mikro","GJS_Oblika","GJS_IPr","Distribucija_Vrsta","SteviloGosOdj","SteviloPosIndOdjemalcev","KontrForm"]
[null,1,null,null,null,null,null,null,null,null,{"$f":"IF(B$14=\"\",\"ü\",IF(COUNTA(B13:J13)=9,IF(SUM(tbl_XML_Distrib[[#This Row],[SteviloGosOdj]:[SteviloPosIndOdjemalcev]])=0,\"û\",\"ü\"),\"û\"))","v":"û"}]
[null,2,null,null,null,null,null,null,null,null,{"$f":"IF(B$14=\"\",\"ü\",IF(COUNTA(B14:J14)=9,IF(SUM(tbl_XML_Distrib[[#This Row],[SteviloGosOdj]:[SteviloPosIndOdjemalcev]])=0,\"û\",\"ü\"),\"û\"))","v":"û"}]

{"sheet":"XML","index":2,"n_rows":0,"n_cols":0,"rows_kept":0,"cut":false,"hidden":true,"merged":[]}

{"sheet":"BAZA","index":3,"n_rows":211,"n_cols":21,"rows_kept":211,"cut":false,"hidden":true,"merged":[]}
[null,null,null,"ID_OB","Občina",null,null,null,null,null,null,"Generator imen datotek"]
[null,null,null,1,"Mestna občina Celje"]
[null,null,null,2,"Mestna občina Koper",null,null,null,null,null,null,null,null,null,null,null,null,null,null,"Fiksni ID oddaje poročila"]
[null,null,null,3,"Mestna občina Kranj",null,null,null,null,null,null,{"$f":"OsnovniPodatki!D13","v":0},"DT-DEP-OB_",{"$f":"CONCATENATE(TEXT(YEAR(TODAY()),\"####\"), RIGHT(\"0\"&TEXT(MONTH(TODAY()),\"##\"),2),RIGHT(\"0\"&TEXT(DAY(TODAY()),\"##\"),2))","v":"20180730"},{"$f":"CONCATENATE(P5,Q5,R5)","v":"112950"},{"$f":"M4&L4&\"_\"&N4&\"-\"&O4","v":"DT-DEP-OB_0_20180730-112950"},null,null,null,null,"DT-DEP-OB_1111111111_20141204-162432"]
[null,null,null,4,"Mestna občina Ljubljana",null,null,null,null,null,null,null,null,{"$f":"TEXT(YEAR(TODAY()),\"####\")","v":"2018"},{"$f":"NOW()","v":43311.479046180553},{"$f":"RIGHT(\"0\"&TEXT(HOUR(NOW()),\"##\"),2)","v":"11"},{"$f":"RIGHT(\"0\"&TEXT(MINUTE(NOW()),\"##\"),2)","v":"29"},{"$f":"RIGHT(\"0\"&TEXT(SECOND(NOW()),\"##\"),2)","v":"50"},null,null,41977.68370115741]
[null,null,null,5,"Mestna občina Maribor",null,null,null,null,null,null,"Generator identa poročila",null,null,{"$f":"TODAY()","v":"2018-07-30"},null,null,null,null,null,"4.12.2014"]
[null,null,null,6,"Mestna občina Murska Sobota",null,null,null,null,null,null,null,null,null,null,{"$f":"L4&\"_\"&N4&\"-\"&O4","v":"0_20180730-112950"},null,null,null,null,"5075556000_20140509-080603"]
[null,null,null,7,"Mestna občina Nova Gorica",null,null,null,null,null,null,null,null,null,null,null,null,null,null,null,{"$f":"OsnovniPodatki!D10","v":0}]
[null,null,null,8,"Mestna občina Novo mesto",null,null,null,null,null,null,null,null,null,null,null,null,null,null,null,{"$f":"OsnovniPodatki!D11","v":""}]
[null,null,null,9,"Mestna občina Ptuj",null,null,null,null,null,null,"Napake"]
[null,null,null,10,"Mestna občina Slovenj Gradec",null,null,null,null,null,null,null,{"$f":"BAZA!N18+BAZA!N19","v":16}]
[null,null,null,11,"Mestna občina Velenje"]
[null,null,null,12,"Občina Ajdovščina",null,null,null,null,null,null,"Sporočilo"]
[null,null,null,13,"Občina Apače",null,null,null,null,null,null,null,{"$f":"\"Agenciji za energijo posredujemo seznam izvajalcev energetskih dejavnosti  distribucij toplote in drugih energetskih plinov, kateri izvajajo omenjene dejavnosti na območju naše občine.\n\n\"&U8&\" \n\"&U9","v":"Agenciji za energijo posredujemo seznam izvajalcev energetskih dejavnosti  distribucij toplote in drugih energetskih plinov, kateri izvajajo omenjene dejavnosti na območju naše občine.\n\n0 \n"}]
[null,null,null,14,"Občina Beltinci"]
[null,null,null,15,"Občina Benedikt"]
[null,null,null,16,"Občina Bistrica ob Sotli"]
[null,null,null,17,"Občina Bled",null,null,null,null,null,null,null,"Število napak - OsnovniPodatki",{"$f":"SUM(OsnovniPodatki!H:H)","v":16}]
[null,null,null,18,"Občina Bloke",null,null,null,null,null,null,null,"Število napak - distribucija",{"$f":"IF((OsnovniPodatki!E24+OsnovniPodatki!E26=0),0,IF((OsnovniPodatki!E24+OsnovniPodatki!E26)-(COUNT(Distribucije!K:K))=0,COUNTIF(Distribucije!K:K,\"û\"),(OsnovniPodatki!E24+OsnovniPodatki!E26))-COUNTIF(Distribucije!K:K,\"ü\"))","v":0}]
[null,null,null,19,"Občina Bohinj",null,null,null,null,null,null,null,"Razlika med podanimi DS in vnesenimi",{"$f":"IF((OsnovniPodatki!E24+OsnovniPodatki!E26)-(COUNTIF(Distribucije!K:K,\"ü\"))=0,0,(OsnovniPodatki!E24+OsnovniPodatki!E26)-(COUNTIF(Distribucije!K:K,\"ü\")))","v":0}]
[null,null,null,20,"Občina Borovnica"]
[null,null,null,21,"Občina Bovec",null,null,null,null,null,null,null,{"$f":"IF(OsnovniPodatki!D10=\"\",\"\",OsnovniPodatki!D10)","v":""}]
[null,null,null,22,"Občina Braslovče",null,null,null,null,null,null,"Napake - distribucija stolpci"]
[null,null,null,23,"Občina Brda",null,null,"B","C","D","E","F"]
[null,null,null,24,"Občina Brezovica",null,null,{"$f":"COUNTA(tbl_XML_Distrib[ID])","v":2},{"$f":"COUNTA(tbl_XML_Distrib[IzvajalecNaziv])","v":0},{"$f":"COUNTA(tbl_XML_Distrib[IzvajalecMaticna])","v":0},{"$f":"COUNTA(tbl_XML_Distrib[Distribucija_Lokacija_Mikro])","v":0},{"$f":"COUNTA(#REF!)","v":1}]
[null,null,null,25,"Občina Brežice",null,null,"I","J","K","L","M"]
[null,null,null,26,"Občina Cankova",null,null,{"$f":"COUNTA(#REF!)","v":1},{"$f":"COUNTA(tbl_XML_Distrib[GJS_Oblika])","v":0},{"$f":"COUNTA(tbl_XML_Distrib[GJS_IPr])","v":0},{"$f":"COUNTA(tbl_XML_Distrib[Distribucija_Vrsta])","v":0},{"$f":"COUNTA(tbl_XML_Distrib[SteviloGosOdj])","v":0}]
[null,null,null,27,"Občina Cerklje na Gorenjskem",null,null,"N","O"]
[null,null,null,28,"Občina Cerknica",null,null,{"$f":"COUNTA(tbl_XML_Distrib[SteviloPosIndOdjemalcev])","v":0},{"$f":"COUNTA(#REF!)","v":1}]
[null,null,null,29,"Občina Cerkno"]
[null,null,null,30,"Občina Cerkvenjak",null,null,{"$f":"SUM(H25:L25,H27:L27,H29:I29)/12/H25","v":0.20833333333333334}]
[null,null,null,31,"Občina Cirkulane"]
[null,null,null,32,"Občina Črenšovci"]
[null,null,null,33,"Občina Črna na Koroškem"]
[null,null,null,34,"Občina Črnomelj"]
[null,null,null,35,"Občina Destrnik"]
[null,null,null,36,"Občina Divača"]
[null,null,null,37,"Občina Dobje"]
[null,null,null,38,"Občina Dobrepolje"]
[null,null,null,39,"Občina Dobrna"]
[null,null,null,40,"Občina Dobrova - Polhov Gradec"]
[null,null,null,41,"Občina Dobrovnik"]
[null,null,null,42,"Občina Dol pri Ljubljani"]
[null,null,null,43,"Občina Dolenjske Toplice"]
[null,null,null,44,"Občina Domžale"]
[null,null,null,45,"Občina Dornava"]
[null,null,null,46,"Občina Dravograd"]
[null,null,null,47,"Občina Duplek"]
[null,null,null,48,"Občina Gorenja vas - Poljane"]
[null,null,null,49,"Občina Gorišnica"]
[null,null,null,50,"Občina Gorje"]
[null,null,null,51,"Občina Gornja Radgona"]
[null,null,null,52,"Občina Gornji Grad"]
[null,null,null,53,"Občina Gornji Petrovci"]
[null,null,null,54,"Občina Grad"]
[null,null,null,55,"Občina Grosuplje"]
[null,null,null,56,"Občina Hajdina"]
[null,null,null,57,"Občina Hoče - Slivnica"]
[null,null,null,58,"Občina Hodoš - Hodos község"]
[null,null,null,59,"Občina Horjul"]
[null,null,null,60,"Občina Hrastnik"]
[null,null,null,61,"Občina Hrpelje - Kozina"]
[null,null,null,62,"Občina Idrija"]
[null,null,null,63,"Občina Ig"]
[null,null,null,64,"Občina Ilirska Bistrica"]
[null,null,null,65,"Občina Ivančna Gorica"]
[null,null,null,66,"Občina Izola"]
[null,null,null,67,"Občina Jesenice"]
[null,null,null,68,"Občina Jezersko"]
[null,null,null,69,"Občina Juršinci"]
[null,null,null,70,"Občina Kamnik"]
[null,null,null,71,"Občina Kanal ob Soči"]
[null,null,null,72,"Občina Kidričevo"]
[null,null,null,73,"Občina Kobarid"]
[null,null,null,74,"Občina Kobilje"]
[null,null,null,75,"Občina Kočevje"]
[null,null,null,76,"Občina Komen"]
[null,null,null,77,"Občina Komenda"]
[null,null,null,78,"Občina Kostanjevica na Krki"]
[null,null,null,79,"Občina Kostel"]
[null,null,null,80,"Občina Kozje"]
[null,null,null,81,"Občina Kranjska Gora"]
[null,null,null,82,"Občina Križevci"]
[null,null,null,83,"Občina Krško"]
[null,null,null,84,"Občina Kungota"]
[null,null,null,85,"Občina Kuzma"]
[null,null,null,86,"Občina Laško"]
[null,null,null,87,"Občina Lenart"]
[null,null,null,88,"Občina Lendava"]
[null,null,null,89,"Občina Litija"]
[null,null,null,90,"Občina Ljubno"]
[null,null,null,91,"Občina Ljutomer"]
[null,null,null,92,"Občina Log - Dragomer"]
[null,null,null,93,"Občina Logatec"]
[null,null,null,94,"Občina Loška Dolina"]
[null,null,null,95,"Občina Loški Potok"]
[null,null,null,96,"Občina Lovrenc na Pohorju"]
[null,null,null,97,"Občina Luče"]
[null,null,null,98,"Občina Lukovica"]
[null,null,null,99,"Občina Majšperk"]
[null,null,null,100,"Občina Makole"]
[null,null,null,101,"Občina Markovci"]
[null,null,null,102,"Občina Medvode"]
[null,null,null,103,"Občina Mengeš"]
[null,null,null,104,"Občina Metlika"]
[null,null,null,105,"Občina Mežica"]
[null,null,null,106,"Občina Miklavž na Dravskem polju"]
[null,null,null,107,"Občina Miren - Kostanjevica"]
[null,null,null,108,"Občina Mirna Peč"]
[null,null,null,109,"Občina Mislinja"]
[null,null,null,110,"Občina Mokronog - Trebelno"]
[null,null,null,111,"Občina Moravče"]
[null,null,null,112,"Občina Moravske Toplice"]
[null,null,null,113,"Občina Mozirje"]
[null,null,null,114,"Občina Muta"]
[null,null,null,115,"Občina Naklo"]
[null,null,null,116,"Občina Nazarje"]
[null,null,null,117,"Občina Odranci"]
[null,null,null,118,"Občina Oplotnica"]
[null,null,null,119,"Občina Ormož"]
[null,null,null,120,"Občina Osilnica"]
[null,null,null,121,"Občina Pesnica"]
[null,null,null,122,"Občina Piran"]
[null,null,null,123,"Občina Pivka"]
[null,null,null,124,"Občina Podčetrtek"]
[null,null,null,125,"Občina Podlehnik"]
[null,null,null,126,"Občina Podvelka"]
[null,null,null,127,"Občina Poljčane"]
[null,null,null,128,"Občina Polzela"]
[null,null,null,129,"Občina Postojna"]
[null,null,null,130,"Občina Prebold"]
[null,null,null,131,"Občina Preddvor"]
[null,null,null,132,"Občina Prevalje"]
[null,null,null,133,"Občina Puconci"]
[null,null,null,134,"Občina Rače - Fram"]
[null,null,null,135,"Občina Radeče"]
[null,null,null,136,"Občina Radenci"]
[null,null,null,137,"Občina Radlje ob Dravi"]
[null,null,null,138,"Občina Radovljica"]
[null,null,null,139,"Občina Ravne na Koroškem"]
[null,null,null,140,"Občina Razkrižje"]
[null,null,null,141,"Občina Rečica Ob Savinji"]
[null,null,null,142,"Občina Renče - Vogrsko"]
[null,null,null,143,"Občina Ribnica"]
[null,null,null,144,"Občina Ribnica na Pohorju"]
[null,null,null,145,"Občina Rogaška Slatina"]
[null,null,null,146,"Občina Rogašovci"]
[null,null,null,147,"Občina Rogatec"]
[null,null,null,148,"Občina Ruše"]
[null,null,null,149,"Občina Selnica ob Dravi"]
[null,null,null,150,"Občina Semič"]
[null,null,null,151,"Občina Sevnica"]
[null,null,null,152,"Občina Sežana"]
[null,null,null,153,"Občina Slovenska Bistrica"]
[null,null,null,154,"Občina Slovenske Konjice"]
[null,null,null,155,"Občina Sodražica"]
[null,null,null,156,"Občina Solčava"]
[null,null,null,157,"Občina Središče ob Dravi"]
[null,null,null,158,"Občina Starše"]
[null,null,null,159,"Občina Straža"]
[null,null,null,160,"Občina Sveta Ana"]
[null,null,null,161,"Občina Sveta Trojica v Slovenskih goricah"]
[null,null,null,162,"Občina Sveti Andraž v Slovenskih goricah"]
[null,null,null,163,"Občina Sveti Jurij ob Ščavnici"]
[null,null,null,164,"Občina Sveti Jurij v Slovenskih Goricah"]
[null,null,null,165,"Občina Sveti Tomaž"]
[null,null,null,166,"Občina Šalovci"]
[null,null,null,167,"Občina Šempeter - Vrtojba"]
[null,null,null,168,"Občina Šenčur"]
[null,null,null,169,"Občina Šentilj"]
[null,null,null,170,"Občina Šentjernej"]
[null,null,null,171,"Občina Šentjur pri Celju"]
[null,null,null,172,"Občina Šentrupert"]
[null,null,null,173,"Občina Škocjan"]
[null,null,null,174,"Občina Škofja Loka"]
[null,null,null,175,"Občina Škofljica"]
[null,null,null,176,"Občina Šmarje pri Jelšah"]
[null,null,null,177,"Občina Šmarješke Toplice"]
[null,null,null,178,"Občina Šmartno ob Paki"]
[null,null,null,179,"Občina Šmartno pri Litiji"]
[null,null,null,180,"Občina Šoštanj"]
[null,null,null,181,"Občina Štore"]
[null,null,null,182,"Občina Tabor"]
[null,null,null,183,"Občina Tišina"]
[null,null,null,184,"Občina Tolmin"]
[null,null,null,185,"Občina Trbovlje"]
[null,null,null,186,"Občina Trebnje"]
[null,null,null,187,"Občina Trnovska vas"]
[null,null,null,188,"Občina Trzin"]
[null,null,null,189,"Občina Tržič"]
[null,null,null,190,"Občina Turnišče"]
[null,null,null,191,"Občina Velika Polana"]
[null,null,null,192,"Občina Velike Lašče"]
[null,null,null,193,"Občina Veržej"]
[null,null,null,194,"Občina Videm"]
[null,null,null,195,"Občina Vipava"]
[null,null,null,196,"Občina Vitanje"]
[null,null,null,197,"Občina Vodice"]
[null,null,null,198,"Občina Vojnik"]
[null,null,null,199,"Občina Vransko"]
[null,null,null,200,"Občina Vrhnika"]
[null,null,null,201,"Občina Vuzenica"]
[null,null,null,202,"Občina Zagorje ob Savi"]
[null,null,null,203,"Občina Zavrč"]
[null,null,null,204,"Občina Zreče"]
[null,null,null,205,"Občina Žalec"]
[null,null,null,206,"Občina Železniki"]
[null,null,null,207,"Občina Žetale"]
[null,null,null,208,"Občina Žiri"]
[null,null,null,209,"Občina Žirovnica"]
[null,null,null,210,"Občina Žužemberk"]